lending/lending_fUSD_20240721
["ID","MTS","AMOUNT","RATE_DAILY","PERIOD"]
[332840879,1721567194082,554.0,0.0001198,30]
[332840880,1721567194553,554.0,0.0001199,30]
[332840881,1721567195581,554.5,0.0001198,30]
[332840882,1721567197093,150.0,0.0001188,2]
[332840883,1721567197117,150.0,0.0001188,2]
[332840884,1721567234493,150.0,0.00011899,2]
[332840885,1721567234516,150.0,0.00011899,2]
[332840886,1721567234538,150.0,0.00011899,2]
[332840887,1721567234562,86.39872033,0.00011899,2]
[332840888,1721567239565,150.0,0.000119,2]
[332840889,1721567239587,150.0,0.000119,2]
[332840890,1721567239608,150.0,0.000119,2]
[332840891,1721567239630,86.39872032,0.000119,2]
[332840892,1721567244587,536.39872032,0.000119,2]
[332840893,1721567256670,150.0,0.00011841,30]
[332840894,1721567256692,50.0,0.00011841,30]
[332840895,1721567256728,100.0,0.00011841,30]
[332840896,1721567256749,100.0,0.00011841,30]
[332840897,1721567256783,50.0,0.00011841,30]
[332840898,1721567256804,150.0,0.00011841,30]
[332840899,1721567256843,150.0,0.00011841,30]
[332840900,1721567256864,50.0,0.00011841,30]
[332840901,1721567257613,100.0,0.0001188,2]
[332840902,1721567257635,150.0,0.0001188,2]
[332840903,1721567257660,55.0,0.0001188,2]
[332840904,1721567260481,200.0,0.00011841,30]
[332840905,1721567262117,1988729.62942262,0.000119,2]
[332840909,1721567366509,-11484.48925544,0.000118,2]
[332840910,1721567366530,-340.95646059,0.000118,2]
[332840911,1721567366551,-150.5,0.0001187,30]
[332840912,1721567366571,-150.5,0.0001187,30]
[332840913,1721567366592,-150.5,0.0001188,30]
[332840914,1721567366613,-150.5,0.0001188,30]
[332840915,1721567366634,-150.5,0.0001189,30]
[332840916,1721567366654,-150.5,0.0001189,30]
[332840917,1721567366674,-271.55428397,0.0001189,30]
[332840918,1721567377524,-13.44571603,0.0001189,30]
[332840919,1721567377545,-150.0,0.00011899,2]
[332840920,1721567377566,-836.55428397,0.000119,2]
[332840921,1721567422209,150.0,0.00010959,2]
[332840922,1721567422232,150.0,0.00010959,2]
[332840923,1721567422254,66.22,0.00010959,2]
[332840924,1721567423816,-176.80192375,0.000118,2]
[332840925,1721567425520,-150.0,0.000118,2]
[332840937,1721567427782,-150.0,0.000118,2]
[332840938,1721567428200,-150.0,0.000118,2]
[332840939,1721567428897,-150.0,0.000118,2]
[332840940,1721567429398,-150.0,0.000118,2]
[332840957,1721567431864,-303.44063245,0.000118,2]
[332840958,1721567431877,-470.75099638,0.0001189,2]
[332840959,1721567431887,-600.0,0.0001189,2]
[332840960,1721567431896,-216.53024033,0.0001189,2]
[332840961,1721567431907,-797.15416373,0.0001189,2]
[332840962,1721567431917,-188.11843409,0.0001189,2]
[332840963,1721567431927,-381.27320361,0.000119,2]
[332840964,1721567431944,-3364.86830082,0.000119,2]
[332840965,1721567432084,-6949.17054274,0.000119,2]
[332840966,1721567432096,-12449.7187072,0.000119,2]
[332840967,1721567432110,-664.03948097,0.000119,2]
[332840971,1721567432758,150.0,0.00010959,2]
[332840972,1721567432781,30.11,0.00010959,2]
[332840982,1721567438885,-437.70943335,0.000119,2]
[332840983,1721567438900,-1057.27437,0.000119,2]
[332840984,1721567438913,-2773.28413778,0.000119,2]
[332840985,1721567438923,-253.90437755,0.000119,2]
[332840986,1721567438943,-337.129035,0.000119,2]
[332840987,1721567438955,-3320.0,0.000119,2]
[332840988,1721567438967,-4830.00410248,0.000119,2]
[332840989,1721567438985,-400.0,0.000119,2]
[332840990,1721567439265,-13.93483441,0.000119,2]
[332840991,1721567440059,-3100.09378254,0.000119,2]
[332840992,1721567440071,-553.996,0.000119,2]
[332840993,1721567440329,-1438.93900478,0.000119,2]
[332840994,1721567440356,-1997.0,0.000119,2]
[332840995,1721567440371,-3245.9,0.000119,2]
[332840996,1721567440404,-678.52000001,0.000119,2]
[332841032,1721567443017,-523.44,0.000119,2]
[332841035,1721567443129,-81529.6313046,0.000119,2]
[332841036,1721567443144,-826.25901472,0.000119,2]
[332841037,1721567443157,-7239.84984436,0.000119,2]
[332841038,1721567443243,-5975.35005171,0.000119,2]
[332841039,1721567443254,-966.54999995,0.000119,2]
[332841040,1721567443422,-150.0,0.000119,2]
[332841054,1721567444777,-150.0,0.000119,2]
[332841055,1721567445262,-150.0,0.000119,2]
[332841063,1721567446030,-591.5645175,0.000119,2]
[332841066,1721567446042,-21708.48171763,0.000119,2]
[332841070,1721567446053,-324.81,0.000119,2]
[332841079,1721567446097,-1175.55550787,0.000119,2]
[332841082,1721567446108,-704.8,0.000119,2]
[332841090,1721567446159,-333.36416002,0.000119,2]
[332841092,1721567446170,-4883.9047737,0.000119,2]
[332841094,1721567446180,-5584.18381131,0.000119,2]
[332841099,1721567446219,-51066.5438173,0.000119,2]
[332841104,1721567446334,-619.76020313,0.000119,2]
[332841105,1721567446465,-25340.1561615,0.000119,2]
[332841106,1721567446493,-150.0,0.000119,2]
[332841107,1721567446505,-1412.93673964,0.000119,2]
[332841108,1721567446520,-3224.0758753,0.000119,2]
[332841109,1721567447121,-150.0,0.000119,2]
[332841110,1721567447771,-150.0,0.000119,2]
[332841111,1721567448178,-150.0,0.000119,2]
[332841112,1721567448822,-150.0,0.000119,2]
[332841113,1721567449206,-150.0,0.000119,2]
[332841114,1721567449858,-150.0,0.000119,2]
[332841115,1721567450277,-150.0,0.000119,2]
[332841116,1721567450691,-150.0,0.000119,2]
[332841117,1721567451157,-150.0,0.000119,2]
[332841118,1721567462645,161.56622223,0.00010165,2]
[332841119,1721567462667,161.56622223,0.00010165,2]
[332841120,1721567462688,161.56622223,0.00010165,2]
[332841121,1721567462709,36.21133331,0.00010165,2]
[332841122,1721567471021,-243.51883417,0.00011781,2]
[332841123,1721567471668,-248.6486917,0.00011781,2]
[332841124,1721567473643,-229.11843409,0.00011781,2]
[332841125,1721567474044,-229.11843409,0.00011781,2]
[332841126,1721567474854,-211.39571112,0.00011781,2]
[332841127,1721567510139,150.0,0.000109,3]
[332841128,1721567510161,150.0,0.000109,3]
[332841129,1721567510184,150.0,0.000109,3]
[332841130,1721567510207,50.0,0.000109,3]
[332841131,1721567512287,150.0,0.00011,4]
[332841132,1721567512311,150.0,0.00011,4]
[332841133,1721567512333,150.0,0.00011,4]
[332841134,1721567512357,150.0,0.00011,4]
[332841135,1721567512379,150.0,0.00011,4]
[332841136,1721567512401,150.0,0.00011,4]
[332841137,1721567512426,100.0,0.00011,4]
[332841138,1721567514447,1600.0,0.000111,4]
[332841139,1721567551041,150.0,0.000111,2]
[332841140,1721567551062,150.0,0.000111,2]
[332841141,1721567551083,150.0,0.000111,2]
[332841142,1721567551105,150.0,0.000111,2]
[332841143,1721567551125,150.0,0.000111,2]
[332841144,1721567551147,120.85768416,0.000111,2]
[332841145,1721567592011,150.0,0.000111,2]
[332841146,1721567592034,150.0,0.000111,2]
[332841147,1721567592054,150.0,0.000111,2]
[332841148,1721567592075,150.0,0.000111,2]
[332841149,1721567592096,150.0,0.000111,2]
[332841150,1721567592117,150.0,0.000111,2]
[332841151,1721567592138,150.0,0.000111,2]
[332841152,1721567592159,150.0,0.000111,2]
[332841153,1721567592182,150.0,0.000111,2]
[332841154,1721567592206,234651.6450066,0.000111,2]
[332841155,1721567593275,150.0,0.000111,2]
[332841156,1721567593297,150.0,0.000111,2]
[332841157,1721567593319,150.0,0.000111,2]
[332841158,1721567593340,150.0,0.000111,2]
[332841159,1721567593362,119.95709716,0.000111,2]
[332841160,1721567593624,30.04290284,0.000111,2]
[332841161,1721567593646,124.95709716,0.000111,2]
[332841162,1721567595952,150.0,0.000111,2]
[332841163,1721567595974,150.0,0.000111,2]
[332841164,1721567595995,150.0,0.000111,2]
[332841165,1721567596016,150.0,0.000111,2]
[332841166,1721567596037,150.0,0.000111,2]
[332841167,1721567596057,150.0,0.000111,2]
[332841168,1721567596077,150.0,0.000111,2]
[332841169,1721567596097,150.0,0.000111,2]
[332841170,1721567596121,150.0,0.000111,2]
[332841171,1721567596146,150.0,0.000111,2]
[332841172,1721567596167,150.0,0.000111,2]
[332841173,1721567596190,150.0,0.000111,2]
[332841174,1721567596210,150.0,0.000111,2]
[332841175,1721567596232,150.0,0.000111,2]
[332841176,1721567596252,150.0,0.000111,2]
[332841177,1721567596273,150.0,0.000111,2]
[332841178,1721567596294,150.0,0.000111,2]
[332841179,1721567596315,150.0,0.000111,2]
[332841180,1721567596337,150.0,0.000111,2]
[332841181,1721567596357,150.0,0.000111,2]
[332841182,1721567596378,150.0,0.000111,2]
[332841183,1721567596399,150.0,0.000111,2]
[332841184,1721567596421,150.0,0.000111,2]
[332841185,1721567596441,150.0,0.000111,2]
[332841186,1721567596462,150.0,0.000111,2]
[332841187,1721567596482,150.0,0.000111,2]
[332841188,1721567596503,150.0,0.000111,2]
[332841189,1721567596523,150.0,0.000111,2]
[332841190,1721567596547,150.0,0.000111,2]
[332841191,1721567596568,150.0,0.000111,2]
[332841192,1721567596589,150.0,0.000111,2]
[332841193,1721567596610,237.39221067,0.000111,2]
[332841194,1721567596630,150.0,0.000111,2]
[332841195,1721567596651,150.0,0.000111,2]
[332841196,1721567596672,150.0,0.000111,2]
[332841197,1721567596694,2268.56106063,0.000111,2]
[332841198,1721567612914,150.0,0.000111,2]
[332841199,1721567612940,8.80623493,0.000111,2]
[332841200,1721567614279,-166.23666791,0.00011182,2]
[332841201,1721567615825,-150.0,0.00011182,2]
[332841202,1721567618709,-150.0,0.00011182,2]
[332841203,1721567618741,-150.5,0.0001187,30]
[332841204,1721567618764,-233.44,0.0001187,30]
[332841205,1721567618788,-150.5,0.0001188,30]
[332841206,1721567618810,-150.5,0.0001188,30]
[332841207,1721567618832,-150.5,0.0001189,30]
[332841208,1721567618854,-150.5,0.0001189,30]
[332841209,1721567619968,-150.0,0.00011182,2]
[332841210,1721567621436,-150.0,0.00011182,2]
[332841211,1721567622871,-150.0,0.00011182,2]
[332841212,1721567651055,870.85768416,0.000111,2]
[332841213,1721567663237,181.50980067,0.000111,2]
[332841214,1721567675894,357.59914689,0.000111,2]
[332841215,1721567686189,-150.0,0.0001115,2]
[332841216,1721567688101,-150.0,0.0001115,2]
[332841221,1721567733604,200.0,0.0001098,2]
[332841222,1721567741364,-57.59914688,0.0001115,2]
[332841223,1721567741386,-92.40085312,0.0001115,2]
[332841224,1721567742923,-150.0,0.0001115,2]
[332841225,1721567745081,-57.59914688,0.0001115,2]
[332841226,1721567745102,-92.40085312,0.0001115,2]
[332841227,1721567746651,-62.59914688,0.0001115,2]
[332841228,1721567746672,-87.40085312,0.0001115,2]
[332841229,1721567748276,-150.0,0.0001115,2]
[332841230,1721567749970,-150.0,0.0001115,2]
[332841231,1721567750567,-150.0,0.0001115,2]
[332841232,1721567751024,-150.0,0.0001115,2]
[332841233,1721567751513,-116.33076233,0.0001115,2]
[332841234,1721567751535,-33.66923767,0.0001115,2]
[332841235,1721567752323,-150.0,0.0001115,2]
[332841236,1721567753249,-150.0,0.0001115,2]
[332841237,1721567753924,-150.0,0.0001115,2]
[332841238,1721567793378,357.59914688,0.0001105,2]
[332841239,1721567835113,210.52157161,0.0001105,2]
[332841240,1721567836626,155.0,0.0001105,2]
[332841241,1721567838337,-176.96,0.0001187,30]
[332841242,1721567838362,-301.0,0.0001187,30]
[332841243,1721567838384,-301.0,0.0001187,30]
[332841244,1721567838405,-150.5,0.0001188,30]
[332841245,1721567838428,-301.0,0.0001188,30]
[332841246,1721567838451,-301.0,0.0001188,30]
[332841247,1721567838473,-301.0,0.0001188,30]
[332841248,1721567838495,-302.7,0.0001188,30]
[332841249,1721567838516,-150.5,0.0001189,30]
[332841250,1721567838539,-301.0,0.0001189,30]
[332841251,1721567838560,-301.0,0.0001189,30]
[332841252,1721567838582,-301.0,0.0001189,30]
[332841253,1721567838605,-301.0,0.0001189,30]
[332841254,1721567839603,158.80623493,0.0001105,2]
[332841255,1721567845052,870.85768416,0.0001105,2]
[332841256,1721567853260,299.91634281,0.0001105,2]
[332841257,1721567886354,200.0,0.00011831,30]
[332841258,1721567886403,200.0,0.00011831,30]
[332841259,1721567886460,200.0,0.00011831,30]
[332841260,1721567886514,200.0,0.00011831,30]
[332841261,1721567886572,200.0,0.00011831,30]
[332841262,1721567910113,150.5,0.0001189,30]
[332841264,1721567910584,150.5,0.0001188,30]
[332841265,1721567910633,225.82,0.0001189,30]
[332841266,1721567911014,151.0,0.0001189,30]
[332841267,1721567911111,158.74,0.0001187,30]
[332841268,1721568004403,508.67,9.191e-05,2]
[332841269,1721568027938,-83.76333209,0.00011182,2]
[332841270,1721568027964,-600.0,0.00011186,2]
[332841271,1721568027991,-2100.0,0.000112,4]
[332841272,1721568028015,-166.97,0.00011219,2]
[332841273,1721568028040,-250.0,0.00011231,2]
[332841274,1721568028066,-2700.0,0.000113,4]
[332841275,1721568028092,-300.0,0.00011337,2]
[332841276,1721568028118,-23900.0,0.00011338,2]
[332841277,1721568028144,-500.0,0.000114,4]
[332841278,1721568028169,-508.67,0.00011455,2]
[332841279,1721568028195,-500.0,0.000115,4]
[332841280,1721568028225,-500.0,0.000116,4]
[332841281,1721568028250,-2085.0,0.00011663,2]
[332841282,1721568028275,-299.99,0.00011663,2]
[332841283,1721568028302,-500.0,0.000117,4]
[332841284,1721568028329,-1000.0,0.000118,4]
[332841285,1721568028356,-926.80192375,0.000118,2]
[332841286,1721568028380,-1310.96234632,0.000118,2]
[332841287,1721568028406,-163.93512621,0.00011815,2]
[332841288,1721568028432,-160.12966324,0.0001187,2]
[332841289,1721568028457,-273.09054928,0.0001189,2]
[332841290,1721568028481,-150.0,0.00011898,2]
[332841291,1721568028507,-785.20134825,0.00011899,2]
[332841292,1721568028534,-1010.43605341,0.00011899,3]
[332841293,1721568028561,-1010.43605341,0.00011899,3]
[332841294,1721568028588,-1010.43605341,0.00011899,3]
[332841295,1721568028615,-1010.43605342,0.00011899,3]
[332841296,1721568028640,-35993.74149721,0.000119,2]
[332841299,1721568058771,15581.4517,0.00011082,2]
[332841300,1721568104749,1369.23166798,0.00011082,2]
[332841301,1721568110836,300.03264459,0.00011082,2]
[332841302,1721568115157,797.15416373,0.00011082,2]
[332841303,1721568146043,236001.6450066,0.00011082,2]
[332841304,1721568166487,7566.63074584,0.00011082,2]
[332841305,1721568180463,171.02,9.621e-05,2]
[332841306,1721568184745,20358.82820975,0.00011082,2]
[332841307,1721568203919,1369.23166798,0.00011082,2]
[332841308,1721568241022,34516.28937643,0.00011082,2]
[332841309,1721568241042,10000.0,0.00011082,2]
[332841310,1721568241062,10000.0,0.00011082,2]
[332841311,1721568241083,10000.0,0.00011082,2]
[332841312,1721568241102,10000.0,0.00011082,2]
[332841313,1721568241122,10000.0,0.00011082,2]
[332841314,1721568241142,10000.0,0.00011082,2]
[332841315,1721568241162,10000.0,0.00011082,2]
[332841316,1721568241183,10000.0,0.00011082,2]
[332841317,1721568241204,10000.0,0.00011082,2]
[332841318,1721568241224,10000.0,0.00011082,2]
[332841319,1721568241244,10000.0,0.00011082,2]
[332841320,1721568241264,10000.0,0.00011082,2]
[332841321,1721568241287,10000.0,0.00011082,2]
[332841322,1721568241307,10000.0,0.00011082,2]
[332841323,1721568241327,10000.0,0.00011082,2]
[332841324,1721568241347,10000.0,0.00011082,2]
[332841325,1721568241367,10000.0,0.00011082,2]
[332841326,1721568241390,10000.0,0.00011082,2]
[332841327,1721568241411,10000.0,0.00011082,2]
[332841328,1721568241432,11485.35563017,0.00011082,2]
[332841329,1721568255982,7594.57255704,0.00011082,2]
[332841330,1721568268737,2405.42744296,0.00011082,2]
[332841331,1721568268758,10000.0,0.00011082,2]
[332841332,1721568268779,7953.40076679,0.00011082,2]
[332841333,1721568286960,1369.23166798,0.00011082,2]
[332841334,1721568298670,180.21705847,0.00011082,2]
[332841335,1721568305072,497.15050676,0.00011082,2]
[332841336,1721568305092,4.94244928,0.00011082,2]
[332841337,1721568319643,3150.0,9e-05,2]
[332841338,1721568329242,6845.05755072,0.00011082,2]
[332841339,1721568329264,10000.0,0.00011082,2]
[332841340,1721568329285,10000.0,0.00011082,2]
[332841341,1721568329305,8828.97048531,0.00011082,2]
[332841343,1721568355177,150.0,6.94e-05,2]
[332841344,1721568357498,489.13,0.00010959,2]
[332841345,1721568358630,436.63259212,0.00011082,2]
[332841355,1721568378548,95.26692257,0.00010959,2]
[332841356,1721568378571,131.13307743,0.00010959,2]
[332841357,1721568380931,1369.23166798,0.00011082,2]
[332841358,1721568388418,200.0,0.00011027,30]
[332841359,1721568388464,210.85653968,0.00011027,30]
[332841360,1721568389061,188.67,0.00010959,2]
[332841361,1721568389293,155.11169351,0.00011082,2]
[332841363,1721568399930,157.22,0.00010959,2]
[332841364,1721568410417,786.13,0.00010959,2]
[332841365,1721568412894,155.0,0.00011082,2]
[332841369,1721568426534,181.50980067,0.00011082,2]
[332841388,1721568432033,6875.99376041,0.00011082,2]
[332841389,1721568432053,690.63698543,0.00011082,2]
[332841390,1721568433542,155.0,0.00011082,2]
[332841391,1721568433618,158.80623493,0.00011082,2]
[332841404,1721568436024,8995.55677964,0.00011082,2]
[332841405,1721568436044,10000.0,0.00011082,2]
[332841406,1721568436064,10000.0,0.00011082,2]
[332841407,1721568436087,93956.03313368,0.00011082,2]
[332841409,1721568437675,155.0,0.00011082,2]
[332841411,1721568441075,346.36345517,0.00011082,2]
[332841412,1721568444848,300.23388085,0.00011082,2]
[332841413,1721568445061,291.13157161,0.00011082,2]
[332841414,1721568445922,200.0,0.000109,3]
[332841415,1721568448054,500.0,0.00011,4]
[332841416,1721568449543,305.08205591,0.00011082,2]
[332841417,1721568450150,700.0,0.000111,4]
[332841419,1721568454255,20358.82820975,0.00011082,2]
[332841421,1721568459951,1369.23166798,0.00011082,2]
[332841423,1721568461043,176.84,8.977e-05,2]
[332841424,1721568461254,176.84,0.00010473,2]
[332841425,1721568463623,158.80623493,0.00011082,2]
[332841426,1721568468054,160.22778644,0.00011082,2]
[332841427,1721568468143,797.15416373,0.00011082,2]
[332841428,1721568469398,20358.82820975,0.00011082,2]
[332841429,1721568474850,300.23388085,0.00011082,2]
[332841431,1721568479977,4587.72646207,0.0001,2]
[332841439,1721568512657,7566.63074584,0.00011082,2]
[332841440,1721568512705,234.90364031,0.00011082,2]
[332841443,1721568519018,1836.58,0.00010983,2]
[332841444,1721568531067,291.13157161,0.00011082,2]
[332841445,1721568531439,250.0,0.00011011,2]
[332841446,1721568535798,181.50980067,0.00011082,2]
[332841447,1721568536181,155.0,0.00011082,2]
[332841450,1721568550948,1369.23166798,0.00010983,2]
[332841451,1721568553175,797.15416373,0.00010983,2]
[332841452,1721568554505,-200.0,0.00011841,30]
[332841453,1721568554529,-200.0,0.00011841,30]
[332841454,1721568554554,-200.0,0.00011841,30]
[332841455,1721568554577,-200.0,0.00011841,30]
[332841456,1721568554601,-200.0,0.00011841,30]
[332841457,1721568554625,-22037.59172899,0.00012,30]
[332841458,1721568562634,158.80623493,0.00010983,2]
[332841459,1721568572793,181.50980067,0.00010983,2]
[332841460,1721568575363,20358.82820975,0.00010983,2]
[332841461,1721568579860,300.23388085,0.00010983,2]
[332841462,1721568581608,1020.92,9.082e-05,2]
[332841463,1721568594657,797.15416373,0.00011008,2]
[332841464,1721568602985,150.0,9.082e-05,2]
[332841465,1721568603031,150.0,9.082e-05,2]
[332841466,1721568603126,153.46294058,9.082e-05,2]
[332841467,1721568604310,250.0,0.00010952,2]
[332841468,1721568606293,181.50980067,0.00011008,2]
[332841469,1721568607067,291.13157161,9.082e-05,2]
[332841470,1721568610123,158.80623493,0.00011008,2]
[332841471,1721568618537,150.0,0.00011036,2]
[332841472,1721568620892,300.23388085,0.00011008,2]
[332841473,1721568624044,7566.63074584,9.082e-05,2]
[332841474,1721568624762,20358.82820975,0.00011008,2]
[332841488,1721568632227,-553.0,0.00011185,2]
[332841489,1721568632237,-499.60047608,0.000112,4]
[332841490,1721568632435,-500.39952392,0.000112,4]
[332841491,1721568632445,-1200.0,0.000113,4]
[332841492,1721568632454,-825.77885809,0.00011346,2]
[332841502,1721568638156,-1661.72685,0.00011206,2]
[332841503,1721568638167,-551.515,0.00011206,2]
[332841504,1721568638179,-540.65357155,0.00011206,2]
[332841505,1721568638233,-6598.32111383,0.00011206,2]
[332841506,1721568638242,-195.14114191,0.00011346,2]
[332841507,1721568638251,-8428.84845501,0.00011346,2]
[332841508,1721568638261,-200.0,0.000114,4]
[332841509,1721568638271,-10090.967,0.00011411,2]
[332841510,1721568638280,-200.0,0.000115,4]
[332841511,1721568638291,-355.07356262,0.00011519,2]
[332841512,1721568638300,-200.0,0.000116,4]
[332841513,1721568638309,-200.0,0.000117,4]
[332841514,1721568638318,-150.0,0.00011799,2]
[332841515,1721568638327,-7753.17368105,0.000118,2]
[332841516,1721568638336,-627.0,0.000118,4]
[332841517,1721568638346,-161.16502464,0.000118,2]
[332841518,1721568638356,-385.58595163,0.000118,2]
[332841519,1721568638365,-8376.40953891,0.00011897,2]
[332841520,1721568638374,-1026.66982016,0.00011899,2]
[332841521,1721568638383,-13236.67943685,0.000119,2]
[332841522,1721568638398,-18963.915,0.000119,2]
[332841670,1721568640055,367.13177894,0.00011008,2]
[332841671,1721568640145,-361.6076338,0.000119,2]
[332841705,1721568640958,-260.99944086,0.000119,2]
[332841708,1721568640969,-3870.69084883,0.000119,2]
[332841710,1721568640980,-8251.28107346,0.000119,2]
[332841712,1721568640995,-819.45729106,0.000119,2]
[332841714,1721568641007,-9442.3382266,0.000119,2]
[332841716,1721568641017,-1184.90028675,0.000119,2]
[332841718,1721568641028,-3569.6177846,0.000119,2]
[332841720,1721568641040,-53696.38772876,0.000119,2]
[332841723,1721568641051,-38874.19279709,0.000119,2]
[332841736,1721568641167,-5677.58714608,0.000119,2]
[332841738,1721568641178,-566.18888113,0.000119,2]
[332841740,1721568641190,-5873.89872731,0.000119,2]
[332841814,1721568642464,1369.23166798,9.082e-05,2]
[332841835,1721568643196,-1746.04129229,0.000119,2]
[332841836,1721568643340,-20439.95268357,0.000119,2]
[332841837,1721568643401,150.0,0.00011008,2]
[332841838,1721568643423,150.0,0.00011008,2]
[332841839,1721568643445,2196.14756871,0.00011008,2]
[332841840,1721568643458,-2051.96602235,0.000119,2]
[332841928,1721568647422,-19881.0,0.00011781,2]
[332841929,1721568647433,-841029.36807223,0.000119,2]
[332841930,1721568654589,150.0,0.00011008,2]
[332841931,1721568654612,141.13157161,0.00011008,2]
[332841932,1721568654657,8.86842839,0.00011008,2]
[332841933,1721568654683,150.0,0.00011008,2]
[332841934,1721568654705,150.0,0.00011008,2]
[332841935,1721568654726,150.0,0.00011008,2]
[332841936,1721568654749,337.2054483,0.00011008,2]
[332841937,1721568656316,156.81767341,0.00011008,2]
[332841938,1721568656338,24.69212726,0.00011008,2]
[332841939,1721568664079,3021.12761227,0.00011008,2]
[332841940,1721568678890,1342.7845,0.000111,2]
[332841941,1721568721611,-155.15927925,0.00011346,2]
[332841942,1721568734641,158.80623493,0.000111,2]
[332841943,1721568736979,1369.23166798,0.000111,2]
[332841944,1721568738082,291.13157161,0.000111,2]
[332841945,1721568739371,300.74466922,0.000111,2]
[332841946,1721568743564,4197.20244597,0.000111,2]
[332841947,1721568744261,16867.3507368,0.000111,2]
[332841948,1721568749729,158.80623493,0.000111,2]
[332841949,1721568771810,181.50980067,0.000111,2]
[332841950,1721568776101,172.83,8.974e-05,2]
[332841951,1721568776328,172.83,0.00010469,2]
[332841952,1721568786471,-173.34,0.00011217,2]
[332841953,1721568786799,181.50980067,0.000111,2]
[332841954,1721568796536,-154.25,0.0001187,30]
[332841955,1721568796560,-150.5,0.0001187,30]
[332841956,1721568796582,-150.5,0.0001188,30]
[332841957,1721568796604,-151.27,0.0001188,30]
[332841958,1721568796628,-150.5,0.0001188,30]
[332841959,1721568796654,-253.85,0.0001188,30]
[332841960,1721568796676,-150.5,0.0001189,30]
[332841961,1721568796698,-150.5,0.0001189,30]
[332841962,1721568796719,-156.11,0.0001189,30]
[332841963,1721568796743,-150.5,0.0001189,30]
[332841964,1721568796764,-258.89,0.0001189,30]
[332841965,1721568796786,-150.5,0.0001189,30]
[332841966,1721568796808,-1000.0,0.00012,30]
[332841970,1721568870394,202.0,0.0001189,30]
[332841971,1721568870571,444.0,0.0001189,30]
[332841972,1721568870679,150.5,0.0001189,30]
[332841973,1721568871119,444.0,0.0001188,30]
[332841974,1721568871172,150.5,0.0001188,30]
[332841975,1721568871616,444.0,0.0001187,30]
[332841976,1721568871669,150.5,0.0001187,30]
[332841977,1721568872181,150.5,0.0001189,30]
[332841978,1721568872269,444.0,0.0001189,30]
[332841979,1721568872744,170.85,0.0001188,30]
[332841980,1721568872965,444.0,0.0001188,30]
[332841981,1721568873503,444.0,0.0001187,30]
[332841982,1721568874284,444.0,0.0001189,30]
[332841983,1721568874851,444.0,0.0001188,30]
[332841984,1721568875336,444.0,0.0001189,30]
[332841985,1721568875844,450.09,0.0001188,30]
[332841986,1721568897146,200.0,0.00011821,30]